fUSD/lending_fUSD_20260116
["ID","MTS","AMOUNT","RATE_DAILY","PERIOD"]
[402122070,1768530641787,-601.50114901,0.00018,2]
[402122075,1768530641824,-8036.09631423,0.00018,2]
[402122077,1768530641835,-33943.13707426,0.00018,2]
[402122081,1768530641865,-254.35801595,0.00018,2]
[402122084,1768530641879,-585.00775334,0.00018,2]
[402122086,1768530641890,-1901.96,0.00018,2]
[402122152,1768530643047,-374.36990935,0.00018,2]
[402122153,1768530643174,-2294.93495063,0.00018,2]
[402122154,1768530643262,-360.35258863,0.00018,2]
[402122158,1768530645808,-959.04855498,0.00018,2]
[402122159,1768530645950,-986.79100016,0.00018,2]
[402122160,1768530645962,-3334.19286682,0.00018,2]
[402122161,1768530645974,-1070.58390912,0.00018,2]
[402122162,1768530646015,-311.95472696,0.00018,2]
[402122163,1768530646049,-425.18445538,0.00018,2]
[402122164,1768530646087,-438.59144533,0.00018,2]
[402122165,1768530646099,-14827.20269495,0.00018,2]
[402122166,1768530646111,-277.97094915,0.00018,2]
[402122167,1768530646148,-2993.63221655,0.00018,2]
[402122168,1768530646164,-28263.39319031,0.00018,2]
[402122169,1768530657741,1215.65,0.00030137,120]
[402122170,1768530662006,500.0,0.00014571,2]
[402122171,1768530697621,600.0,0.0003,120]
[402122172,1768530706526,500.0,0.00014571,2]
[402122173,1768530706886,527.81985698,0.00014571,2]
[402122174,1768530709544,1403.0,0.00030137,120]
[402122175,1768530783374,5426.74743917,0.00015334,2]
[402122176,1768530783396,8559.17224308,0.00015334,2]
[402122177,1768530842112,1000.0,0.00030137,120]
[402122178,1768530865335,1159.22447725,0.00015334,2]
[402122179,1768530916954,750.0,0.00030137,120]
[402122180,1768530939719,646.09921376,0.00015334,2]
[402122181,1768530971260,8194.68630899,0.00015334,2]
[402122182,1768530971283,5571.34652139,0.00015334,2]
[402122183,1768530971418,166.0,0.000301,120]
[402122184,1768530972441,166.0,0.000301,120]
[402122185,1768530978021,166.0,0.000301,120]
[402122186,1768530978919,166.0,0.000301,120]
[402122187,1768531004984,162.67987505,0.000153,2]
[402122188,1768531061470,1074.8891,0.00015334,2]
[402122189,1768531062065,201.20013458,0.00015334,2]
[402122190,1768531152684,1014.32141755,0.00015334,2]
[402122191,1768531227206,1975.57295143,0.00015334,2]
[402122192,1768531227229,524.42704857,0.00015334,2]
[402122202,1768531235831,511.24268744,0.00014571,2]
[402122213,1768531241292,1214.88,0.00030137,120]
[402122219,1768531293892,169.223,0.00015125,2]
[402122220,1768531293930,1780.91,0.00015125,2]
[402122221,1768531296595,7014.20726399,0.00015334,2]
[402122222,1768531296621,5573.12045008,0.00015334,2]
[402122223,1768531357520,4426.88954992,0.00015334,2]
[402122224,1768531357543,7962.53999744,0.00015334,2]
[402122227,1768531429600,887.5312404,0.00015334,2]
[402122230,1768531539248,253.0509222,0.00015334,2]
[402122231,1768531573207,1254.7,0.00030137,120]
[402122232,1768531580725,216.07,7.723e-05,2]
[402122233,1768531580931,216.07,8.129e-05,2]
[402122234,1768531581164,216.07,8.536e-05,2]
[402122235,1768531581374,216.07,8.942e-05,2]
[402122236,1768531581647,216.07,9.349e-05,2]
[402122237,1768531581899,216.07,9.755e-05,2]
[402122238,1768531582036,216.07,0.00010162,2]
[402122239,1768531582329,216.07,0.00010568,2]
[402122240,1768531582587,216.07,0.00010975,2]
[402122241,1768531583535,216.07,0.00011381,2]
[402122242,1768531583706,216.07,0.00011787,2]
[402122243,1768531583781,216.07,0.00012194,2]
[402122244,1768531583870,216.07,0.000126,2]
[402122245,1768531583974,216.07,0.00013007,2]
[402122246,1768531584190,216.07,0.00013413,2]
[402122247,1768531584284,216.07,0.0001382,2]
[402122248,1768531584382,216.07,0.00014226,2]
[402122249,1768531584471,216.07,0.00014633,2]
[402122250,1768531584680,216.07,0.00015039,2]
[402122251,1768531717835,776.58983535,0.00015334,2]
[402122252,1768531744061,9223.42016465,0.00015334,2]
[402122253,1768531744083,1927.06642792,0.00015334,2]
[402122254,1768531765892,1371.8231079,0.00030136,120]
[402122255,1768531772998,8072.94357208,0.00015333,2]
[402122256,1768531773026,10000.01,0.00015333,2]
[402122257,1768531773052,10000.01,0.00015333,2]
[402122258,1768531773079,10000.01,0.00015333,2]
[402122259,1768531773107,10000.01,0.00015333,2]
[402122260,1768531773134,10000.01,0.00015333,2]
[402122261,1768531773171,10000.01,0.00015333,2]
[402122262,1768531773202,10000.01,0.00015333,2]
[402122263,1768531773229,10000.01,0.00015333,2]
[402122264,1768531773255,10000.01,0.00015333,2]
[402122265,1768531801347,-1200.0,0.00015332,2]
[402122266,1768531810562,-199.41,0.00015323,2]
[402122267,1768531814108,-4984.35031821,0.00015323,2]
[402122268,1768531814230,-3655.76537561,0.00015323,2]
[402122269,1768531814254,-2688.47924878,0.00015323,2]
[402122270,1768531814335,-10000.01,0.00015333,2]
[402122271,1768531816682,-10000.01,0.00015333,2]
[402122272,1768531816778,-10000.01,0.00015333,2]
[402122273,1768531819735,-10000.01,0.00015333,2]
[402122274,1768531819834,-10000.01,0.00015333,2]
[402122285,1768531831961,-712.9570641,0.00015333,2]
[402122287,1768531831973,-605.71259571,0.00015333,2]
[402122290,1768531831984,-449.66614174,0.00015333,2]
[402122294,1768531832047,-1166.37493235,0.00015333,2]
[402122295,1768531832058,-1168.18354245,0.00015333,2]
[402122296,1768531832150,-259.39015822,0.00015333,2]
[402122297,1768531832169,-30355.4511724,0.00015333,2]
[402122298,1768531832192,-257.87596969,0.00015333,2]
[402122299,1768531832203,-729.51283028,0.00015333,2]
[402122300,1768531832234,-1024.19922528,0.00015333,2]
[402122310,1768531838052,-500.0,0.00015332,2]
[402122311,1768531838061,-500.0,0.00015332,2]
[402122312,1768531838071,-556.30188827,0.00015332,2]
[402122313,1768531838080,-500.0,0.00015332,2]
[402122314,1768531838089,-500.0,0.00015332,2]
[402122315,1768531838099,-332.85184426,0.00015332,2]
[402122316,1768531838108,-500.0,0.00015332,2]
[402122317,1768531838117,-500.0,0.00015332,2]
[402122318,1768531838126,-500.0,0.00015332,2]
[402122319,1768531838136,-500.0,0.00015332,2]
[402122320,1768531838145,-500.0,0.00015332,2]
[402122321,1768531838154,-500.0,0.00015332,2]
[402122322,1768531838164,-500.0,0.00015332,2]
[402122323,1768531838173,-500.0,0.00015332,2]
[402122324,1768531838182,-500.0,0.00015332,2]
[402122325,1768531838192,-500.0,0.00015332,2]
[402122326,1768531838202,-500.0,0.00015332,2]
[402122327,1768531838212,-500.0,0.00015332,2]
[402122328,1768531838222,-500.0,0.00015332,2]
[402122329,1768531838231,-500.0,0.00015332,2]
[402122330,1768531838241,-500.0,0.00015332,2]
[402122331,1768531838251,-500.0,0.00015332,2]
[402122332,1768531838261,-500.0,0.00015332,2]
[402122334,1768531838271,-500.0,0.00015332,2]
[402122336,1768531838280,-500.0,0.00015332,2]
[402122338,1768531838291,-500.0,0.00015332,2]
[402122340,1768531838301,-500.0,0.00015332,2]
[402122342,1768531838310,-500.0,0.00015332,2]
[402122344,1768531838319,-496.77744127,0.00015332,2]
[402122345,1768531838329,-500.0,0.00015332,2]
[402122346,1768531838338,-500.0,0.00015332,2]
[402122347,1768531838348,-500.0,0.00015332,2]
[402122348,1768531838358,-500.0,0.00015332,2]
[402122349,1768531838368,-500.0,0.00015332,2]
[402122350,1768531838377,-500.0,0.00015332,2]
[402122351,1768531838387,-500.0,0.00015332,2]
[402122352,1768531838397,-500.0,0.00015332,2]
[402122354,1768531838406,-500.0,0.00015332,2]
[402122356,1768531838416,-500.0,0.00015332,2]
[402122358,1768531838426,-500.0,0.00015332,2]
[402122360,1768531838435,-500.0,0.00015332,2]
[402122362,1768531838444,-500.0,0.00015332,2]
[402122364,1768531838454,-500.0,0.00015332,2]
[402122366,1768531838463,-500.0,0.00015332,2]
[402122368,1768531838474,-500.0,0.00015332,2]
[402122370,1768531838484,-500.0,0.00015332,2]
[402122372,1768531838493,-500.0,0.00015332,2]
[402122374,1768531838505,-500.0,0.00015332,2]
[402122376,1768531838515,-500.0,0.00015332,2]
[402122378,1768531838525,-477190.5997957,0.00015333,2]
[402122380,1768531838534,-3958.08069588,0.00015424,2]
[402122382,1768531838544,-300.0,0.00015424,2]
[402122384,1768531838553,-250.0,0.00015424,2]
[402122386,1768531838563,-500.0,0.00015425,2]
[402122388,1768531838574,-500.0,0.00015425,2]
[402122389,1768531838584,-549.15986205,0.00015425,2]
[402122390,1768531838594,-151.0,0.00015425,2]
[402122391,1768531838604,-151.0,0.00015425,2]
[402122392,1768531838613,-151.0,0.00015425,2]
[402122393,1768531838622,-151.0,0.00015425,2]
[402122394,1768531838633,-151.0,0.00015425,2]
[402122396,1768531838644,-151.0,0.00015425,2]
[402122399,1768531838656,-151.0,0.00015425,2]
[402122401,1768531838666,-151.0,0.00015425,2]
[402122403,1768531838675,-151.0,0.00015425,2]
[402122404,1768531838684,-151.0,0.00015425,2]
[402122406,1768531838694,-151.0,0.00015425,2]
[402122408,1768531838704,-1580.33,0.00015425,2]
[402122411,1768531838714,-250.0,0.00015429,2]
[402122412,1768531838723,-503.99230336,0.00015433,2]
[402122414,1768531838732,-1000.0,0.00015434,2]
[402122416,1768531838743,-1281.3947,0.00015434,2]
[402122419,1768531838764,-258.82,0.00015438,2]
[402122420,1768531838773,-216.07,0.00015446,2]
[402122422,1768531838783,-3606.6,0.00015514,2]
[402122424,1768531838792,-9444.54,0.00015514,2]
[402122426,1768531838802,-11328.59494259,0.00015609,2]
[402122428,1768531838811,-150.99,0.00015619,2]
[402122430,1768531838821,-9999.99,0.00015619,2]
[402122432,1768531838832,-11150.48659256,0.00015619,2]
[402122434,1768531838842,-1782.65659624,0.0001564,2]
[402122436,1768531838852,-200.0,0.00015661,2]
[402122438,1768531838861,-1580.33,0.00015699,2]
[402122441,1768531838872,-17849.79,0.00015702,2]
[402122442,1768531838881,-500.0,0.00015718,2]
[402122445,1768531838892,-500.0,0.00015773,2]
[402122446,1768531838902,-500.0,0.00015773,2]
[402122449,1768531838913,-500.0,0.00015773,2]
[402122451,1768531838923,-500.0,0.00015773,2]
[402122453,1768531838936,-500.0,0.00015773,2]
[402122455,1768531838946,-501.67737325,0.00015773,2]
[402122456,1768531838955,-500.0,0.00015773,2]
[402122458,1768531838965,-500.0,0.00015773,2]
[402122460,1768531838974,-500.0,0.00015773,2]
[402122462,1768531838984,-500.0,0.00015773,2]
[402122464,1768531838994,-500.0,0.00015773,2]
[402122466,1768531839005,-500.0,0.00015773,2]
[402122468,1768531839014,-500.0,0.00015773,2]
[402122470,1768531839024,-508.21036482,0.00015773,2]
[402122472,1768531839034,-505.60752266,0.00015773,2]
[402122474,1768531839043,-500.0,0.00015773,2]
[402122476,1768531839052,-500.0,0.00015828,2]
[402122478,1768531839063,-500.0,0.00015882,2]
[402122481,1768531839073,-1439.15,0.00015893,2]
[402122483,1768531839082,-11328.59494259,0.00015896,2]
[402122485,1768531839093,-166.0,0.000159,2]
[402122487,1768531839103,-166.0,0.000159,2]
[402122489,1768531839112,-11150.48659256,0.00015904,2]
[402122490,1768531839122,-500.0,0.00015937,2]
[402122492,1768531839132,-1580.33,0.00015973,2]
[402122494,1768531839142,-500.0,0.00015992,2]
[402122496,1768531839152,-500.0,0.00016047,2]
[402122498,1768531839162,-500.0,0.00016102,2]
[402122501,1768531839171,-500.0,0.00016112,2]
[402122503,1768531839181,-500.0,0.00016156,2]
[402122504,1768531839190,-11328.59494259,0.00016182,2]
[402122507,1768531839200,-11150.48659256,0.00016189,2]
[402122509,1768531839209,-150.0,0.000162,2]
[402122510,1768531839218,-500.0,0.00016211,2]
[402122513,1768531839228,-1580.33,0.00016247,2]
[402122515,1768531839239,-150.0,0.00016253,2]
[402122517,1768531839248,-172.0,0.00016266,2]
[402122519,1768531839257,-258.82,0.00016296,2]
[402122520,1768531839268,-150.0,0.00016306,2]
[402122522,1768531839277,-500.85523386,0.00016321,2]
[402122524,1768531839287,-581.30772124,0.00016321,2]
[402122526,1768531839296,-1000.0,0.00016321,2]
[402122528,1768531839309,-1000.0,0.00016321,2]
[402122530,1768531839327,-1000.0,0.00016321,2]
[402122532,1768531839342,-1000.0,0.00016321,2]
[402122534,1768531839352,-1002.14924214,0.00016321,2]
[402122536,1768531839362,-1000.0,0.00016321,2]
[402122538,1768531839371,-1000.0,0.00016321,2]
[402122540,1768531839386,-1000.0,0.00016321,2]
[402122542,1768531839402,-1000.0,0.00016321,2]
[402122544,1768531839411,-679.65579077,0.00016321,2]
[402122546,1768531839421,-150.0,0.00016359,2]
[402122548,1768531839430,-150.0,0.00016412,2]
[402122550,1768531839441,-500.0,0.00016438,2]
[402122552,1768531839451,-500.0,0.00016438,2]
[402122554,1768531839460,-500.0,0.00016438,2]
[402122556,1768531839470,-500.0,0.00016438,2]
[402122558,1768531839479,-500.0,0.00016438,2]
[402122560,1768531839489,-500.0,0.00016438,2]
[402122562,1768531839499,-500.0,0.00016438,2]
[402122564,1768531839510,-500.0,0.00016438,2]
[402122566,1768531839520,-500.0,0.00016438,2]
[402122569,1768531839531,-500.0,0.00016438,2]
[402122570,1768531839540,-500.0,0.00016438,2]
[402122573,1768531839551,-500.0,0.00016438,2]
[402122575,1768531839560,-500.0,0.00016438,2]
[402122577,1768531839570,-500.0,0.00016438,2]
[402122579,1768531839580,-500.0,0.00016438,2]
[402122581,1768531839590,-468.85101699,0.00016438,2]
[402122583,1768531839599,-500.0,0.00016438,2]
[402122585,1768531839610,-500.0,0.00016438,2]
[402122587,1768531839623,-500.0,0.00016438,2]
[402122589,1768531839632,-500.0,0.00016438,2]
[402122591,1768531839642,-500.0,0.00016438,2]
[402122593,1768531839652,-500.0,0.00016438,2]
[402122596,1768531839661,-500.0,0.00016438,2]
[402122598,1768531839671,-500.0,0.00016438,2]
[402122600,1768531839680,-500.0,0.00016438,2]
[402122602,1768531839689,-500.0,0.00016438,2]
[402122604,1768531839698,-500.0,0.00016438,2]
[402122606,1768531839709,-500.0,0.00016438,2]
[402122608,1768531839718,-500.0,0.00016438,2]
[402122610,1768531839728,-500.0,0.00016438,2]
[402122612,1768531839738,-500.0,0.00016438,2]
[402122614,1768531839747,-500.0,0.00016438,2]
[402122616,1768531839756,-500.0,0.00016438,2]
[402122618,1768531839765,-500.0,0.00016438,2]
[402122620,1768531839775,-500.0,0.00016438,2]
[402122622,1768531839784,-500.0,0.00016438,2]
[402122624,1768531839793,-500.0,0.00016438,2]
[402122626,1768531839802,-815.0,0.00016438,2]
[402122628,1768531839816,-801.83430165,0.00016438,2]
[402122630,1768531839826,-150.0,0.00016465,2]
[402122632,1768531839835,-11328.59494259,0.00016468,2]
[402122634,1768531839845,-11150.48659256,0.00016474,2]
[402122636,1768531839855,-150.0,0.00016518,2]
[402122638,1768531839867,-1580.33,0.00016521,2]
[402122640,1768531839877,-510.0,0.0001655,2]
[402122642,1768531839888,-150.0,0.00016571,2]
[402122645,1768531839910,-150.0,0.00016624,2]
[402122647,1768531839923,-150.0,0.00016676,2]
[402122649,1768531839935,-150.0,0.00016729,2]
[402122651,1768531839945,-11328.59494259,0.00016755,2]
[402122653,1768531839954,-11150.48659256,0.0001676,2]
[402122655,1768531839963,-150.0,0.00016782,2]
[402122657,1768531839973,-1580.33,0.00016795,2]
[402122659,1768531839982,-150.0,0.00016835,2]
[402122661,1768531839991,-1680.0,0.00016859,2]
[402122663,1768531840001,-1500.0,0.00016868,2]
[402122665,1768531840011,-333.82125986,0.00016868,2]
[402122667,1768531840020,-1500.0,0.00016868,2]
[402122669,1768531840029,-1500.0,0.00016868,2]
[402122671,1768531840042,-1500.0,0.00016868,2]
[402122673,1768531840052,-1500.0,0.00016868,2]
[402122675,1768531840061,-1500.0,0.00016868,2]
[402122677,1768531840070,-1500.0,0.00016868,2]
[402122679,1768531840079,-150.0,0.00016888,2]
[402122681,1768531840088,-166.0,0.000169,2]
[402122683,1768531840098,-166.0,0.000169,2]
[402122685,1768531840107,-500.0,0.00016938,2]
[402122688,1768531840117,-150.0,0.00016941,2]
[402122690,1768531840126,-193.0,0.00016965,2]
[402122692,1768531840136,-600.0,0.00016965,2]
[402122694,1768531840145,-250.0,0.00016966,2]
[402122696,1768531840154,-300.0,0.00016966,2]
[402122698,1768531840163,-2500.0,0.00016966,2]
[402122700,1768531840172,-195.0,0.00016966,2]
[402122702,1768531840182,-200.0,0.00016966,2]
[402122704,1768531840191,-201.11018168,0.00016966,2]
[402122706,1768531840201,-5074.53355401,0.00016966,2]
[402122708,1768531840210,-302.35947012,0.00016966,2]
[402122710,1768531840220,-195.0,0.00016966,2]
[402122712,1768531840232,-300.73444003,0.00016966,2]
[402122714,1768531840241,-2500.0,0.00016966,2]
[402122716,1768531840250,-150.0,0.00016994,2]
[402122718,1768531840259,-250.0,0.00017,2]
[402122720,1768531840269,-11328.59494259,0.00017041,2]
[402122722,1768531840279,-11150.48659256,0.00017045,2]
[402122724,1768531840288,-150.0,0.00017047,2]
[402122726,1768531840297,-1580.33,0.00017068,2]
[402122728,1768531840307,-150.0,0.000171,2]
[402122765,1768531840628,-150.0,0.00017153,2]
[402122768,1768531840645,-258.82,0.00017154,2]
[402122770,1768531840655,-150.0,0.00017206,2]
[402122772,1768531840663,-150.0,0.00017259,2]
[402122774,1768531840673,-900.0,0.00017263,2]
[402122776,1768531840682,-150.0,0.00017312,2]
[402122778,1768531840691,-11150.48659256,0.0001733,2]
[402122780,1768531840700,-1580.33,0.00017342,2]
[402122782,1768531840709,-150.0,0.00017365,2]
[402122785,1768531840727,-4769.0,0.00017374,2]
[402122787,1768531840737,-561.29111258,0.00017415,2]
[402122789,1768531840746,-188.55921769,0.00017415,2]
[402122791,1768531840757,-500.0,0.00017415,2]
[402122793,1768531840765,-257.59354288,0.00017415,2]
[402122795,1768531840774,-592.96765658,0.00017415,2]
[402122797,1768531840783,-500.0,0.00017415,2]
[402122799,1768531840792,-500.0,0.00017415,2]
[402122801,1768531840802,-500.0,0.00017415,2]
[402122803,1768531840811,-500.0,0.00017415,2]
[402122805,1768531840820,-455.55444862,0.00017416,2]
[402122807,1768531840831,-2000.0,0.00017416,2]
[402122809,1768531840840,-2006.18752116,0.00017416,2]
[402122811,1768531840849,-2002.9739671,0.00017416,2]
[402122813,1768531840859,-2003.50213235,0.00017416,2]
[402122815,1768531840868,-2000.0,0.00017416,2]
[402122817,1768531840877,-927.25960188,0.00017416,2]
[402122819,1768531840887,-150.0,0.00017418,2]
[402122821,1768531840897,-4769.0,0.00017432,2]
[402122823,1768531840906,-150.0,0.00017471,2]
[402122825,1768531840917,-4769.0,0.00017485,2]
[402122827,1768531840930,-150.0,0.00017524,2]
[402122829,1768531840940,-150.0,0.00017576,2]
[402122832,1768531840950,-11150.48659256,0.00017615,2]
[402122834,1768531840960,-1580.33,0.00017616,2]
[402122836,1768531840971,-150.0,0.00017629,2]
[402122838,1768531840981,-150.0,0.00017682,2]
[402122840,1768531840990,-150.0,0.00017735,2]
[402122842,1768531841000,-249.05498772,0.00017737,14]
[402122844,1768531841010,-439.36251976,0.00017737,14]
[402122846,1768531841019,-657.26005302,0.00017737,14]
[402122848,1768531841029,-889.2873,0.00017737,14]
[402122850,1768531841043,-866.0,0.00017753,2]
[402122852,1768531841053,-150.0,0.00017788,2]
[402122854,1768531841062,-4769.0,0.00017799,2]
[402122856,1768531841071,-150.0,0.00017841,2]
[402122858,1768531841080,-1580.33,0.0001789,2]
[402122860,1768531841089,-150.0,0.00017894,2]
[402122862,1768531841099,-8687.08375161,0.000179,3]
[402122864,1768531841108,-166.0,0.000179,2]
[402122866,1768531841118,-166.0,0.000179,2]
[402122868,1768531841129,-10000.0,0.000179,2]
[402122870,1768531841138,-11150.48659256,0.000179,2]
[402122872,1768531841147,-216.73549128,0.000179,2]
[402122874,1768531841156,-2135.22094604,0.000179,2]
[402122876,1768531841165,-500.0,0.000179,2]
[402122878,1768531841174,-500.0,0.000179,2]
[402122880,1768531841183,-500.0,0.000179,2]
[402122882,1768531841192,-500.0,0.000179,2]
[402122884,1768531841201,-500.0,0.000179,2]
[402122886,1768531841211,-500.0,0.000179,2]
[402122888,1768531841220,-4769.0,0.00017925,2]
[402122890,1768531841230,-4769.0,0.00017946,2]
[402122893,1768531841239,-150.0,0.00017947,2]
[402122895,1768531841248,-2500.0,0.00017964,2]
[402122897,1768531841258,-2500.0,0.00017964,2]
[402122899,1768531841267,-204.0,0.00017975,2]
[402122901,1768531841276,-619.5541809,0.0001799,2]
[402122903,1768531841286,-619.5541809,0.0001799,2]
[402122905,1768531841295,-619.5541809,0.0001799,2]
[402122907,1768531841304,-4769.0,0.00017992,2]
[402122909,1768531841313,-155.694,0.00017999,2]
[402122911,1768531841322,-308.44597563,0.00017999,2]
[402122913,1768531841331,-500.0,0.00017999,2]
[402122915,1768531841340,-420.65394013,0.00017999,2]
[402122917,1768531841350,-300.0,0.00017999,2]
[402122919,1768531841359,-500.0,0.00017999,2]
[402122921,1768531841368,-178.4154449,0.00018,2]
[402122923,1768531841378,-1489987.83449591,0.00018,2]
[402122985,1768531841946,-854.27689608,0.00018,2]
[402122988,1768531841958,-1663.15007645,0.00018,2]
[402122994,1768531842010,-10698.56219031,0.00018,2]
[402122998,1768531842040,-9591.33551341,0.00018,2]
[402123001,1768531842051,-687.1763985,0.00018,2]
[402123062,1768531842624,-189.71418129,0.000179,3]
[402123064,1768531842633,-2979.85328632,0.00018,2]
[402123066,1768531842645,-9931.45625456,0.00018,2]
[402123068,1768531842656,-10185.87604076,0.00018,2]
[402123071,1768531842785,-366.07666003,0.00018,2]
[402123072,1768531842808,-8603.7311374,0.00018,2]
[402123074,1768531842819,-4487526.6013429,0.00018,2]
[402123076,1768531842828,-415.4250427,0.00018,2]
[402123078,1768531842837,-632262.36930719,0.00018,2]
[402123080,1768531842846,-1401.62327149,0.00018,2]
[402123082,1768531842855,-151.0,0.00018,2]
[402123084,1768531842864,-258.82,0.00018011,2]
[402123086,1768531842874,-9000.0,0.00018035,2]
[402123088,1768531842883,-9121.61299997,0.00018035,2]
[402123091,1768531842892,-586.88085669,0.00018035,2]
[402123094,1768531842901,-732.53437282,0.00018035,2]
[402123097,1768531842910,-3000.0,0.00018035,2]
[402123099,1768531842920,-2000.0,0.00018035,2]
[402123101,1768531842931,-3000.0,0.00018035,2]
[402123102,1768531842940,-2000.0,0.00018035,2]
[402123104,1768531842950,-3000.0,0.00018035,2]
[402123106,1768531842959,-3000.0,0.00018035,2]
[402123108,1768531842968,-2000.0,0.00018035,2]
[402123110,1768531842978,-3000.0,0.00018035,2]
[402123112,1768531842988,-3000.0,0.00018035,2]
[402123114,1768531842997,-2000.0,0.00018035,2]
[402123116,1768531843008,-3000.0,0.00018035,2]
[402123118,1768531843017,-3000.0,0.00018035,2]
[402123121,1768531843026,-2000.0,0.00018035,2]
[402123123,1768531843035,-3000.0,0.00018035,2]
[402123125,1768531843044,-1609.13658287,0.00018035,2]
[402123127,1768531843053,-2000.0,0.00018035,2]
[402123129,1768531843062,-3000.0,0.00018035,2]
[402123131,1768531843071,-2000.0,0.00018035,2]
[402123133,1768531843081,-500.0,0.00018035,2]
[402123135,1768531843091,-3000.0,0.00018035,2]
[402123137,1768531843100,-2000.0,0.00018035,2]
[402123139,1768531843109,-500.0,0.00018035,2]
[402123141,1768531843118,-3000.0,0.00018035,2]
[402123143,1768531843128,-2000.0,0.00018035,2]
[402123145,1768531843139,-500.0,0.00018035,2]
[402123147,1768531843148,-500.0,0.00018035,2]
[402123149,1768531843158,-3000.0,0.00018035,2]
[402123151,1768531843169,-2000.0,0.00018035,2]
[402123153,1768531843189,-500.0,0.00018035,2]
[402123155,1768531843199,-500.0,0.00018035,2]
[402123157,1768531843208,-3000.0,0.00018035,2]
[402123159,1768531843217,-2000.0,0.00018035,2]
[402123161,1768531843227,-500.0,0.00018035,2]
[402123163,1768531843236,-500.0,0.00018035,2]
[402123165,1768531843244,-3000.0,0.00018035,2]
[402123167,1768531843253,-500.0,0.00018035,2]
[402123169,1768531843262,-500.0,0.00018035,2]
[402123171,1768531843273,-500.0,0.00018035,2]
[402123173,1768531843281,-500.0,0.00018035,2]
[402123175,1768531843290,-500.0,0.00018035,2]
[402123177,1768531843299,-500.0,0.00018035,2]
[402123179,1768531843308,-500.0,0.00018035,2]
[402123181,1768531843317,-500.0,0.00018035,2]
[402123183,1768531843329,-500.0,0.00018035,2]
[402123185,1768531843339,-500.0,0.00018035,2]
[402123187,1768531843348,-500.0,0.00018035,2]
[402123189,1768531843358,-500.0,0.00018035,2]
[402123191,1768531843367,-602.58742295,0.00018035,2]
[402123193,1768531843376,-500.0,0.00018035,2]
[402123195,1768531843384,-500.0,0.00018035,2]
[402123197,1768531843393,-500.0,0.00018035,2]
[402123199,1768531843402,-500.0,0.00018035,2]
[402123201,1768531843413,-500.0,0.00018035,2]
[402123203,1768531843422,-500.0,0.00018035,2]
[402123205,1768531843431,-500.0,0.00018035,2]
[402123207,1768531843440,-500.0,0.00018035,2]
[402123209,1768531843450,-500.0,0.00018035,2]
[402123210,1768531843460,-500.0,0.00018035,2]
[402123213,1768531843470,-177.72949484,0.00018035,2]
[402123214,1768531843479,-500.0,0.00018035,2]
[402123216,1768531843488,-612.57082655,0.00018035,2]
[402123218,1768531843497,-1061.24408735,0.00018035,2]
[402123220,1768531843506,-153.65156995,0.00018035,2]
[402123222,1768531843515,-1777.47842535,0.000181,2]
[402123255,1768531843745,-2845.0,0.00018114,2]
[402123259,1768531843813,-1580.33,0.00018164,2]
[402123261,1768531843822,-259.0,0.00018182,2]